bitfinex/quotes_ETHUSD_20240714
["timestamp","ask_amount","ask_price","bid_price","bid_amount"]
[1720995841932,5.59500683,3250.0,3249.3,1.7]
[1720995842235,5.59500683,3250.0,3249.3,2.55491683]
[1720995842935,4.95,3250.0,3249.4,3.01194]
[1720995843561,4.95,3250.0,3249.7,1.7]
[1720995845360,4.95,3250.0,3249.9,2.2312]
[1720995845562,4.95,3250.0,3249.9,3.475496]
[1720995846565,4.95,3250.0,3249.9,1.244296]
[1720995846725,4.95,3250.0,3249.9,0.55]
[1720995846934,4.95,3250.0,3249.7,1.7]
[1720995849366,4.95,3250.0,3249.7,4.1617]
[1720995849554,4.95,3250.0,3249.8,0.55]
[1720995853660,4.95,3250.0,3249.9,2.46161]
[1720995853913,4.95,3250.0,3249.9,6.728939]
[1720995854068,4.95,3250.0,3249.9,4.267329]
[1720995854462,4.95,3250.0,3249.9,6.728939]
[1720995855703,4.95,3250.0,3249.3,3.08611683]
[1720995856008,4.95,3250.0,3249.4,3.0]
[1720995856306,4.95,3250.0,3249.4,2.46199]
[1720995856510,4.95,3250.0,3249.4,5.46199]
[1720995856967,4.95,3250.0,3249.5,0.55]
[1720995857166,4.95,3250.0,3249.6,2.301199]
[1720995857380,4.95,3250.0,3249.6,1.7]
[1720995864870,4.95,3250.0,3249.8,2.46168]
[1720995865074,4.95,3250.0,3249.9,0.55]
[1720995868213,4.95,3250.0,3249.9,3.01161]
[1720995868410,4.95,3250.0,3249.9,5.47322]
[1720995868613,4.95,3250.0,3249.9,6.1810811]
[1720995870627,0.6454777,3250.7,3249.9,3.7194711]
[1720995870777,0.6454777,3251.6,3251.0,1.7]
[1720995870977,0.96821655,3251.9,3251.2,2.46062]
[1720995871231,1.06467379,3251.8,3251.2,2.46062]
[1720995871511,2.3191,3252.0,3251.3,0.55]
[1720995871925,2.3191,3252.0,3251.4,1.7]
[1720995873828,2.2689,3252.6,3251.5,0.55]
[1720995874035,2.2689,3252.6,3251.6,2.46026]
[1720995874328,2.2689,3252.6,3251.8,1.7]
[1720995874483,2.2689,3252.6,3251.9,2.52152534]
[1720995874677,2.2689,3252.6,3252.0,3.0]
[1720995876503,2.2689,3252.6,3251.9,5.46003]
[1720995877425,2.2689,3252.6,3251.9,5.52152558]
[1720995878213,2.2689,3252.6,3252.0,2.52151557]
[1720995878726,2.3221,3253.5,3252.2,2.45982]
[1720995878914,2.3221,3253.5,3252.3,0.61148856]
[1720995878915,2.8839,3253.5,3252.3,0.61148856]
[1720995879291,3.0,3253.4,3252.3,3.00974]
[1720995879487,3.0,3253.4,3252.4,2.45964]
[1720995879762,0.58839,3253.3,3252.4,2.45964]
[1720995879891,0.58839,3253.3,3252.5,0.55]
[1720995880094,2.3221,3253.5,3252.7,2.45947]
[1720995880326,2.3221,3253.5,3252.9,2.45932]
[1720995880530,2.3221,3253.5,3252.8,2.25]
[1720995880531,2.3221,3253.5,3253.0,2.45925]
[1720995881926,2.3221,3253.5,3252.8,1.7]
[1720995882108,2.3221,3253.5,3252.7,0.07111793]
[1720995882306,2.3221,3253.3,3252.7,0.07111793]
[1720995882493,2.3221,3253.3,3252.4,4.7]
[1720995882692,0.02729557,3253.2,3252.4,4.7]
[1720995884054,0.02729557,3253.2,3252.8,1.7]
[1720995884421,2.3221,3253.5,3252.8,1.7]
[1720995884624,0.23221,3253.4,3252.8,1.7]
[1720995885619,0.23221,3253.4,3252.5,0.0711223]
[1720995885813,0.02720857,3253.3,3252.5,0.0711223]
[1720995886458,0.02720857,3253.3,3252.7,1.7]
[1720995887321,0.02720857,3253.3,3252.5,0.0711223]
[1720995887521,0.28536043,3253.3,3252.5,0.0711223]
[1720995887915,0.02720857,3253.3,3252.7,1.7]
[1720995888553,2.3221,3253.5,3252.7,1.7]
[1720995888554,0.02722519,3253.2,3252.7,1.7]
[1720995888722,2.3221,3253.5,3252.7,1.7]
[1720995889046,0.02722581,3253.4,3252.7,1.7]
[1720995895857,2.4071,3253.3,3252.7,1.7]
[1720995896031,0.24343258,3253.2,3252.7,1.7]
[1720995896367,0.27079111,3253.2,3252.7,1.7]
[1720995896578,2.4071,3253.1,3252.5,0.0711223]
[1720995896725,5.0251,3252.6,3252.5,0.0711223]
[1720995897068,5.55494276,3252.6,3252.5,0.0711223]
[1720995897229,5.55494276,3252.6,3250.7,2.461]
[1720995897230,2.4071,3252.5,3250.7,2.461]
[1720995897426,4.86677,3252.5,3250.8,1.7]
[1720995897659,2.4954,3252.1,3250.7,1.7]
[1720995897963,0.53855578,3252.0,3250.7,1.7]
[1720995898262,2.4954,3251.9,3250.4,1.2]
[1720995898477,0.53855578,3252.0,3250.4,1.2]
[1720995898478,2.4954,3251.7,3250.4,1.2]
[1720995898656,2.4954,3251.7,3250.4,8.104798]
[1720995898972,0.02721635,3251.6,3250.5,1.7]
[1720995899151,0.25226163,3251.5,3250.5,1.7]
[1720995899357,0.02721519,3251.4,3250.5,1.7]
[1720995899673,0.02721519,3251.4,3250.6,2.46102]
[1720995900079,2.4954,3251.7,3251.2,1.7]
[1720995900440,2.4954,3251.7,3250.8,4.1609]
[1720995900658,2.4954,3251.7,3251.0,1.7]
[1720995901175,2.4954,3251.7,3251.1,0.55]
[1720995901569,2.3074,3252.2,3251.5,1.7]
[1720995903987,2.3074,3252.2,3251.2,2.46062]
[1720995904141,2.3074,3252.2,3251.1,0.55]
[1720995904345,0.49254,3252.1,3251.1,0.55]
[1720995904851,0.49254,3252.1,3251.0,4.71077]
[1720995905442,2.3074,3252.2,3251.4,1.7]
[1720995905643,2.3074,3252.2,3251.4,4.16044]
[1720995905857,2.3074,3252.2,3251.8,1.7]
[1720995906157,2.618,3252.8,3251.8,1.7]
[1720995906359,4.885,3252.8,3251.8,1.7]
[1720995906560,0.4885,3252.7,3251.8,1.7]
[1720995907092,0.4885,3252.7,3251.6,3.0]
[1720995907245,0.4885,3252.7,3251.5,1.7]
[1720995907445,2.618,3252.4,3251.3,3.0]
[1720995907645,2.618,3252.4,3251.1,4.7]
[1720995907845,0.2618,3252.3,3251.2,1.321073]
[1720995908344,0.2618,3252.3,3251.2,3.021073]
[1720995908646,0.2618,3252.3,3251.3,3.0]
[1720995908842,2.267,3252.6,3251.4,0.06150818]
[1720995909044,2.267,3252.6,3251.6,1.7]
[1720995910056,2.267,3252.6,3251.6,7.16029]
[1720995910379,2.267,3252.6,3251.7,0.55]
[1720995912981,2.267,3252.6,3252.0,1.7]
[1720995913190,2.267,3252.6,3252.1,0.72]
[1720995913985,2.2967,3253.1,3252.1,0.72]
[1720995914180,2.2967,3253.1,3252.4,1.7]
[1720995914400,2.618,3253.6,3252.4,1.7]
[1720995914582,1.06428525,3253.5,3252.5,0.55]
[1720995914812,0.36822853,3253.4,3252.5,0.55]
[1720995916004,2.2967,3253.3,3252.5,0.55]
[1720995916221,2.2967,3253.3,3252.0,11.604798]
[1720995916504,2.618,3253.1,3252.1,0.55]
[1720995919507,2.2967,3253.0,3252.0,11.604798]
[1720995919671,2.5585,3253.0,3252.0,11.604798]
[1720995921841,2.618,3252.7,3252.0,6.904798]
[1720995921990,2.2773,3252.6,3252.0,6.904798]
[1720995924793,2.2773,3252.6,3252.1,0.55]
[1720995925197,2.2773,3252.6,3252.1,1.14331278]
[1720995926817,2.2773,3252.6,3252.1,0.55]
[1720995928331,2.2773,3253.1,3252.5,1.7]
[1720995928653,2.2773,3253.1,3252.6,0.06148411]
[1720995928868,2.2773,3253.6,3252.5,4.15963]
[1720995929158,1.06420123,3253.5,3252.6,0.55]
[1720995929366,2.2773,3253.6,3252.5,1.7]
[1720995929367,2.2773,3253.3,3252.5,1.7]
[1720995931349,1.06427614,3253.2,3252.4,6.904798]
[1720995931661,1.66023375,3253.2,3252.4,6.904798]
[1720995931958,0.59595761,3253.2,3252.4,6.904798]
[1720995932451,1.06432505,3253.1,3252.4,6.904798]
[1720995932663,0.59595761,3253.2,3252.4,6.904798]
[1720995932817,2.618,3253.0,3252.4,6.904798]
[1720995933023,3.34163923,3252.9,3252.4,6.904798]
[1720995933219,1.06447723,3252.8,3252.0,8.604798]
[1720995933418,2.2773,3252.9,3252.0,8.604798]
[1720995933862,1.06443002,3252.8,3252.0,8.604798]
[1720995934068,2.2773,3252.9,3252.0,8.604798]
[1720995934562,1.06441295,3252.8,3252.0,8.604798]
[1720995934719,2.76683,3252.9,3252.0,8.604798]
[1720995934925,1.06440523,3252.8,3252.0,8.604798]
[1720995935227,2.76683,3252.9,3252.0,8.604798]
[1720995935565,1.06442239,3252.8,3252.1,0.55]
[1720995935868,2.76683,3252.9,3252.1,1.4654798]
[1720995935869,2.2773,3252.9,3252.1,1.4654798]
[1720995936245,1.06438917,3252.8,3252.1,0.55]
[1720995936467,2.2773,3252.9,3252.1,0.55]
[1720995936661,1.06439399,3252.8,3252.1,0.55]
[1720995936878,2.2773,3252.9,3252.1,0.55]
[1720995937542,1.06437424,3252.8,3252.1,0.55]
[1720995937743,2.2773,3252.9,3252.2,1.1614808]
[1720995937980,0.96540208,3253.3,3252.3,0.55]
[1720995938181,1.06430478,3253.2,3252.3,0.55]
[1720995938344,1.06430478,3253.1,3252.4,1.7]
[1720995938551,1.06430478,3253.3,3252.5,0.55]
[1720995939071,1.06430478,3253.3,3252.8,1.7]
[1720995939267,1.0641816,3253.6,3252.9,0.55]
[1720995939467,3.31050208,3253.8,3252.9,0.55]
[1720995939468,1.06416539,3253.5,3252.9,0.55]
[1720995939648,2.3451,3253.8,3252.9,0.55]
[1720995939852,1.65699392,3253.7,3252.9,0.55]
[1720995940053,1.06414371,3253.6,3252.9,0.55]
[1720995940263,1.06414371,3253.5,3252.9,0.55]
[1720995940483,2.3451,3253.8,3252.9,0.55]
[1720995940783,1.06410996,3253.7,3252.9,0.55]
[1720995941152,2.3451,3253.8,3252.9,0.55]
[1720995941486,2.40497905,3253.7,3252.9,0.55]
[1720995941664,1.06412861,3253.6,3252.9,0.55]
[1720995941869,4.9631,3253.5,3252.9,0.55]
[1720995942071,1.06412861,3253.4,3252.7,0.55]
[1720995942243,1.09137452,3253.4,3252.7,0.55]
[1720995942555,1.66957606,3253.3,3252.7,0.55]
[1720995942883,0.02724549,3253.2,3252.7,0.55]
[1720995943276,4.9631,3253.5,3252.7,0.55]
[1720995943458,0.02717879,3253.1,3252.7,2.25]
[1720995943664,2.3451,3253.5,3252.7,2.31148252]
[1720995943868,0.02717732,3253.0,3252.8,0.92162805]
[1720995944096,2.3451,3253.5,3252.9,0.55]
[1720995944403,1.06422146,3253.4,3252.9,0.55]
[1720995944561,1.09138552,3253.4,3252.8,0.55]
[1720995944930,0.02716406,3253.4,3252.8,0.55]
[1720995946182,0.96540208,3253.8,3252.8,3.00937]
[1720995946504,1.09126719,3253.7,3252.9,0.694057]
[1720995946789,1.09126719,3253.7,3253.0,0.55]
[1720995946790,1.06416348,3253.6,3253.0,0.55]
[1720995946990,1.06416348,3253.5,3252.8,0.55]
[1720995947159,0.02716438,3253.5,3252.7,3.55]
[1720995947359,1.06416348,3253.4,3252.7,3.55]
[1720995947571,2.39826375,3253.3,3252.7,3.55]
[1720995947768,2.63809012,3253.3,3252.7,0.55]
[1720995947973,1.06427016,3253.2,3252.7,0.55]
[1720995948280,1.09159989,3253.1,3252.7,0.55]
[1720995948477,0.02730067,3253.1,3252.7,0.55]
[1720995948681,5.22892637,3253.3,3252.7,0.55]
[1720995948906,0.02730057,3253.0,3252.7,0.55]
[1720995949112,0.61950831,3253.2,3252.7,0.55]
[1720995949315,0.02730026,3252.9,3252.7,0.55]
[1720995949474,0.61950831,3253.2,3252.7,0.55]
[1720995949809,1.06430833,3253.1,3252.7,0.55]
[1720995950109,0.02730056,3253.1,3252.7,0.55]
[1720995950409,0.71148976,3253.1,3252.7,0.55]
[1720995950566,0.02730056,3253.1,3252.7,0.55]
[1720995950771,3.33725674,3253.3,3252.6,0.55]
[1720995951073,0.02722072,3253.2,3252.6,0.55]
[1720995951368,1.09148132,3253.2,3252.6,0.55]
[1720995951605,0.02722072,3253.2,3252.6,0.55]
[1720995952014,1.06429322,3253.1,3252.6,0.55]
[1720995952219,0.02714745,3253.1,3252.7,0.225]
[1720995952400,2.3711,3253.3,3252.8,0.55]
[1720995952567,0.02714735,3253.0,3252.8,0.55]
[1720995952895,2.3711,3253.3,3252.8,0.55]
[1720995953096,0.02714697,3252.9,3252.8,0.55]
[1720995953298,0.96679326,3253.6,3252.9,1.7]
[1720995953514,0.96679326,3253.7,3253.0,1.020941]
[1720995953825,0.96679326,3253.8,3253.0,1.020941]
[1720995953974,1.0640643,3253.7,3253.3,1.7]
[1720995954169,0.96679326,3254.0,3253.4,0.55]
[1720995954416,0.96679326,3254.3,3253.4,0.55]
[1720995954585,2.40452015,3254.2,3253.4,1.020903]
[1720995954787,1.06394697,3254.1,3253.4,1.020903]
[1720995955125,0.96679326,3254.3,3253.4,1.020903]
[1720995955274,3.37134367,3254.2,3253.4,0.55]
[1720995955476,0.96679326,3254.2,3253.4,0.55]
[1720995955830,3.37137367,3254.1,3253.4,0.55]
[1720995955990,3.37137367,3254.0,3253.4,0.55]
[1720995956317,2.40458041,3253.9,3253.4,0.55]
[1720995956479,0.96679326,3254.1,3253.4,0.55]
[1720995956679,0.02716831,3253.9,3253.4,0.55]
[1720995956977,0.0271681,3253.8,3253.4,0.55]
[1720995957210,0.96679326,3254.2,3253.4,0.55]
[1720995957407,0.02716779,3253.7,3253.4,0.55]
[1720995957610,0.96654122,3254.2,3253.4,0.55]
[1720995957937,0.02716731,3253.6,3253.4,0.55]
[1720995958080,1.06399056,3254.1,3253.4,2.7812]
[1720995958283,0.02729757,3253.5,3253.4,2.7812]
[1720995958617,2.4983,3254.5,3253.4,2.7812]
[1720995958618,3.46484122,3254.5,3253.4,2.7812]
[1720995958913,0.02749944,3253.5,3253.4,2.7812]
[1720995959077,2.4983,3254.5,3253.4,4.1657028]
[1720995959519,0.02750439,3254.4,3253.4,4.1657028]
[1720995959869,0.02750439,3254.4,3253.5,0.06146568]
[1720995960079,0.02750439,3254.4,3253.6,0.55]
[1720995960309,0.02750439,3254.4,3253.7,1.7]
[1720995960519,0.02750439,3254.4,3253.8,0.55]
[1720995961230,1.28872163,3255.0,3254.3,1.7]
[1720995961231,0.96654122,3255.0,3254.3,1.7]
[1720995961395,2.40397906,3254.9,3254.4,0.55]
[1720995961584,6.04764122,3255.2,3254.4,0.55]
[1720995961785,2.40402073,3255.1,3254.4,0.55]
[1720995962085,0.96654122,3255.4,3254.8,1.7]
[1720995962287,2.2946,3255.5,3254.9,0.55]
[1720995964101,4.9126,3255.9,3254.9,0.55]
[1720995966739,4.9126,3255.9,3254.9,0.023081]
[1720995966926,5.40386,3255.9,3254.8,8.604798]
[1720995968246,0.02705624,3255.8,3254.8,8.604798]
[1720995969322,0.02705624,3255.8,3255.1,1.7]
[1720995969524,5.618,3256.5,3255.2,0.55]
[1720995969855,2.618,3256.1,3255.2,0.55]
[1720995970154,0.2618,3256.0,3255.2,0.55]
[1720995970751,2.618,3255.7,3254.8,8.604798]
[1720995970953,2.618,3255.7,3254.8,6.904798]
[1720995971317,2.447,3255.9,3254.9,1.7]
[1720995971515,2.447,3255.9,3255.0,0.55]
[1720995972523,2.4569,3256.3,3255.0,0.55]
[1720995972721,0.54569,3256.2,3255.1,2.2312]
[1720995972959,0.54569,3256.2,3255.2,0.55]
[1720995973344,2.4569,3256.7,3255.8,1.7]
[1720995973533,2.4569,3256.7,3255.9,0.55]
[1720995973960,2.4569,3256.7,3255.8,1.7]
[1720995974159,2.4569,3256.7,3255.6,6.904798]
[1720995974322,2.4569,3256.7,3255.7,0.55]
[1720995974523,0.50749,3256.6,3255.7,0.55]
[1720995975079,0.50749,3256.6,3255.6,6.904798]
[1720995975080,2.618,3256.4,3255.6,6.904798]
[1720995976433,2.4569,3256.3,3255.6,6.904798]
[1720995978158,2.618,3256.0,3255.6,6.904798]
[1720995978361,2.618,3256.0,3255.2,19.234798]
[1720995979754,2.4569,3256.3,3255.2,19.234798]
[1720995979954,0.50749,3256.2,3255.2,19.234798]
[1720995981368,2.618,3256.0,3255.2,19.234798]
[1720995981567,0.50749,3256.2,3255.2,19.234798]
[1720995981746,2.4569,3256.3,3255.2,19.234798]
[1720995982362,2.4569,3256.3,3255.3,0.55]
[1720995982873,5.4569,3256.7,3255.5,3.9312]
[1720995983047,3.0,3256.6,3255.5,3.9312]
[1720995983446,2.4569,3256.7,3255.6,0.55]
[1720995983447,5.4569,3256.7,3255.6,0.55]
[1720995983640,0.80749,3256.6,3255.6,0.55]
[1720995983842,3.80749,3256.6,3255.6,0.55]
[1720995985375,2.618,3256.4,3255.5,1.7]
[1720995985668,2.568,3256.4,3255.2,6.904798]
[1720995985973,1.32521268,3256.3,3255.2,6.904798]
[1720995986138,0.2618,3256.3,3255.2,6.904798]
[1720995987077,0.2618,3256.3,3255.3,0.55]
[1720995987239,0.2618,3256.3,3255.3,2.25]
[1720995987776,1.06338598,3256.2,3255.3,2.25]
[1720995988066,0.2618,3256.3,3255.3,2.25]
[1720995988258,1.34636398,3256.2,3255.3,2.25]
[1720995988461,0.28298,3256.2,3255.3,2.25]
[1720995988645,1.0633679,3256.1,3255.3,2.25]
[1720995988858,0.28298,3256.2,3255.3,2.25]
[1720995989060,1.06337007,3256.1,3255.3,2.25]
[1720995989269,2.568,3256.4,3255.3,2.25]
[1720995989574,1.06332876,3256.3,3255.3,5.25]
[1720995989760,1.06332876,3256.2,3255.4,2.2312]
[1720995989962,2.4569,3256.7,3255.5,1.30426279]
[1720995990278,1.06330881,3256.6,3255.5,1.30426279]
[1720995990480,1.06330881,3256.5,3255.5,1.36568956]
[1720995990685,2.4569,3256.7,3255.5,1.36568956]
[1720995990686,1.06330881,3256.4,3255.7,1.7]
[1720995990889,2.4569,3256.7,3255.8,0.55]
[1720995990890,5.4569,3256.7,3255.8,0.55]
[1720995991043,1.06320072,3256.6,3255.8,0.55]
[1720995991394,2.2753,3257.9,3256.5,1.7]
[1720995991575,3.68101888,3257.8,3256.6,0.55]
[1720995991745,1.06300339,3257.7,3256.6,0.55]
[1720995991949,1.06300339,3257.6,3256.6,0.55]
[1720995992194,1.06300339,3257.5,3256.6,0.55]
[1720995992373,1.06300339,3257.4,3256.6,0.55]
[1720995992683,1.06300339,3257.3,3256.6,0.61140733]
[1720995992881,1.06300339,3257.3,3256.6,1.52688713]
[1720995993082,1.06300339,3257.2,3256.6,1.4654798]
[1720995993376,2.618,3257.8,3256.6,1.4654798]
[1720995993586,1.06295656,3257.7,3256.6,1.4654798]
[1720995993755,2.618,3257.4,3256.6,1.4654798]
[1720995993951,1.06295656,3257.3,3256.6,1.4654798]
[1720995994359,1.06295656,3257.4,3256.6,1.4654798]
[1720995994574,1.06295656,3257.3,3256.6,1.4654798]
[1720995994752,2.618,3257.5,3256.6,1.4654798]
[1720995994962,1.06298332,3257.4,3256.6,1.4654798]
[1720995995170,1.06298332,3257.3,3256.6,1.4654798]
[1720995995473,2.618,3257.5,3256.6,1.4654798]
[1720995995652,1.06293227,3257.4,3256.6,1.4654798]
[1720995995853,2.618,3257.5,3256.6,1.4654798]
[1720995996244,2.618,3257.5,3256.7,0.31654798]
[1720995996455,2.3855,3258.5,3256.9,1.7]
[1720995996679,2.618,3258.1,3256.9,1.7]
[1720995996991,1.06278005,3258.0,3257.0,0.55]
[1720995997784,2.618,3258.2,3257.0,0.55]
[1720995997785,1.06278005,3257.9,3257.0,0.55]
[1720995998003,2.618,3258.2,3257.1,0.225]
[1720995998165,1.06280317,3258.1,3257.1,0.225]
[1720995998349,1.06280317,3258.0,3257.1,0.225]
[1720995999002,2.618,3258.2,3257.1,0.225]
[1720995999157,1.06274489,3258.1,3257.3,1.7]
[1720995999352,2.618,3258.2,3257.4,0.225]
[1720995999660,2.618,3258.2,3257.3,1.7]
[1720996002165,2.3855,3258.5,3257.4,0.06139413]
[1720996002490,2.618,3258.6,3257.5,0.55]
[1720996002715,5.0035,3259.0,3257.7,1.7]
[1720996002996,0.1160225,3259.5,3258.1,1.7]
[1720996003153,1.06236191,3259.4,3258.2,5.23654]
[1720996003359,0.1160225,3259.5,3259.0,1.7]
[1720996003563,0.1160225,3259.5,3259.1,0.55]
[1720996003782,0.1160225,3259.5,3258.7,2.2312]
[1720996004006,0.1160225,3259.5,3258.8,1.7091008]
[1720996004382,0.1160225,3259.5,3259.4,1.7]
[1720996004704,0.1160225,3259.5,3259.4,0.55]
[1720996004881,0.1160225,3259.5,3258.9,3.0]
[1720996005077,0.1160225,3259.5,3259.3,1.7]
[1720996005303,0.1160225,3259.5,3259.4,0.17]
[1720996005478,0.1160225,3259.5,3259.4,0.72]
[1720996005700,0.1160225,3259.5,3259.4,0.55]
[1720996006004,0.14315305,3259.5,3258.9,4.7]
[1720996006200,0.14315305,3259.5,3259.0,0.55]
[1720996006415,0.1160225,3259.5,3259.0,0.55]
[1720996006916,0.1160225,3259.5,3259.4,3.9312]
[1720996007218,0.1160225,3259.5,3259.4,0.39312]
[1720996007390,0.1160225,3259.5,3259.4,0.55]
[1720996007796,0.1160225,3259.5,3259.2,0.55]
[1720996008004,0.1160225,3259.5,3259.0,0.55]
[1720996009617,0.1160225,3259.5,3259.1,1.7]
[1720996009922,0.02717024,3259.4,3259.1,1.7]
[1720996010167,0.02717024,3259.4,3259.1,2.225]
[1720996010423,0.02716992,3259.4,3259.2,0.55]
[1720996010622,0.1160225,3259.5,3259.2,0.55]
[1720996010795,0.1160225,3259.5,3259.3,2.2312]
[1720996011121,0.1160225,3259.5,3259.4,1.373572]
[1720996011485,0.1160225,3259.5,3259.4,6.828002]
[1720996011686,2.45278,3261.7,3259.4,6.828002]
[1720996011687,4.80488,3261.9,3260.3,1.7]
[1720996011982,2.618,3261.5,3260.4,0.55]
[1720996012522,2.618,3261.5,3260.4,0.61133572]
[1720996012735,2.618,3261.5,3260.5,0.23113357]
[1720996013390,4.9703,3261.9,3260.6,0.55]
[1720996013989,4.9703,3261.9,3260.6,0.61132611]
[1720996014298,4.9703,3261.9,3260.7,1.7]
[1720996014299,2.618,3261.9,3260.7,1.7]
[1720996014525,2.618,3261.9,3260.8,0.55]
[1720996014707,0.2618,3261.8,3260.8,0.55]
[1720996015738,3.0,3261.8,3260.8,0.55]
[1720996015956,2.618,3262.2,3260.8,0.55]
[1720996015957,2.618,3262.2,3261.1,1.7]
[1720996016249,0.1160225,3262.8,3261.5,1.7]
[1720996016744,0.1160225,3262.8,3261.6,0.55]
[1720996016890,0.1160225,3262.8,3261.6,0.775]
[1720996016891,0.38942475,3262.8,3261.6,0.775]
[1720996017433,2.618,3262.6,3261.6,0.55]
[1720996018532,2.618,3262.6,3261.2,3.9312]
[1720996018533,2.618,3262.6,3261.3,0.55]
[1720996019219,2.618,3262.6,3261.6,1.7]
[1720996019408,2.618,3262.6,3261.7,0.55]
[1720996019409,3.0,3262.5,3261.7,0.55]
[1720996020444,5.45212,3262.5,3261.1,1.7]
[1720996020643,2.618,3262.2,3261.2,0.55]
[1720996021118,2.618,3262.2,3261.1,0.55]
[1720996021323,0.807004,3262.4,3261.5,1.7]
[1720996021524,0.807004,3262.4,3261.6,0.55]
[1720996022536,2.618,3262.6,3261.6,0.775]
[1720996022775,0.1160225,3262.8,3261.7,0.06130435]
[1720996022927,0.1160225,3262.8,3262.0,1.7]
[1720996023238,0.1160225,3262.8,3262.1,0.61129964]
[1720996023602,0.1160225,3262.8,3262.1,0.55]
[1720996023800,0.38942475,3262.8,3262.1,0.55]
[1720996024103,0.1160225,3262.8,3262.1,0.55]
[1720996024534,0.1160225,3262.8,3262.1,0.61129964]
[1720996025651,0.1160225,3262.8,3262.1,0.55]
[1720996027108,0.1160225,3262.8,3261.6,4.7]
[1720996027312,0.1160225,3262.8,3261.3,3.0]
[1720996027313,2.618,3262.5,3261.3,3.0]
[1720996027607,2.8798,3262.5,3261.4,0.52312]
[1720996027845,2.8798,3262.5,3261.4,1.7]
[1720996028618,2.618,3262.1,3260.9,6.904798]
[1720996028849,0.2618,3262.5,3260.9,6.904798]
[1720996028850,2.618,3261.7,3260.9,6.904798]
[1720996030878,2.618,3261.3,3260.9,6.904798]
[1720996033172,2.38,3261.2,3260.5,6.904798]
[1720996033337,2.618,3260.6,3260.5,6.904798]
[1720996033540,2.618,3260.6,3259.7,1.7]
[1720996033541,2.618,3260.6,3259.9,6.904798]
[1720996033958,2.618,3260.2,3259.9,6.904798]
[1720996035270,5.07185,3260.2,3259.9,6.904798]
[1720996035490,0.997158,3260.1,3259.9,6.904798]
[1720996036361,3.477,3260.0,3259.9,6.904798]
[1720996036559,3.477,3260.0,3258.3,2.45524]
[1720996036560,6.99327977,3260.0,3258.8,6.904798]
[1720996036801,0.997158,3260.1,3258.8,6.904798]
[1720996036802,3.477,3259.5,3258.8,6.904798]
[1720996037924,2.4459,3259.4,3258.8,6.904798]
[1720996038196,0.59229,3259.3,3258.8,6.904798]
[1720996038394,0.59229,3259.3,3258.4,6.904798]
[1720996038595,3.0468,3259.3,3258.4,6.904798]
[1720996039770,2.4459,3259.4,3258.4,6.904798]
[1720996040364,2.4459,3259.4,3258.5,0.55]
[1720996043495,3.477,3259.5,3258.5,2.25]
[1720996043701,3.477,3259.5,3258.5,2.31136586]
[1720996043869,3.477,3259.5,3258.5,2.25]
[1720996044072,3.477,3259.5,3258.6,0.9154798]
[1720996044286,3.477,3259.5,3258.7,0.55]
[1720996045268,3.477,3259.5,3258.8,0.0613659]
[1720996045900,3.477,3259.5,3258.7,0.55]
[1720996046324,3.477,3259.5,3258.8,0.06136579]
[1720996046622,3.477,3259.5,3258.8,0.06136585]
[1720996047172,3.477,3259.5,3258.7,0.55]
[1720996047394,3.477,3259.5,3258.8,0.50791259]
[1720996047599,3.477,3259.5,3258.8,0.44654798]
[1720996047773,3.477,3259.5,3258.9,0.55]
[1720996050108,3.477,3259.5,3258.6,0.9154798]
[1720996050313,3.477,3259.0,3258.4,6.904798]
[1720996051978,3.477,3259.0,3258.5,0.55]
[1720996053220,3.477,3259.5,3258.5,0.55]
[1720996054218,3.477,3259.5,3258.8,1.7]
[1720996054533,3.477,3259.5,3258.9,0.72]
[1720996054680,3.477,3259.5,3258.5,3.0]
[1720996055712,3.477,3259.5,3258.7,1.7]
[1720996056077,3.477,3259.5,3258.8,0.55]
[1720996056314,2.608,3259.3,3258.8,0.55]
[1720996056528,2.608,3259.3,3258.9,0.225]
[1720996056721,2.608,3259.3,3259.0,0.55]
[1720996057102,2.608,3259.7,3259.0,0.55]
[1720996057519,2.608,3259.7,3259.3,1.7]
[1720996057822,2.3878,3260.5,3259.3,1.7]
[1720996057823,4.9958,3260.5,3259.4,0.61135493]
[1720996057996,4.9958,3260.5,3259.5,0.23113549]
[1720996058201,2.608,3260.5,3259.6,0.61134758]
[1720996058509,2.608,3260.5,3260.4,0.30669754]
[1720996060224,3.476,3260.5,3260.4,0.30669754]
[1720996060396,3.8236,3260.5,3260.4,0.30669754]
[1720996060807,3.476,3260.5,3260.4,0.30669754]
[1720996061516,5.8638,3260.5,3260.4,0.30669754]
[1720996062698,6.92573681,3260.5,3260.4,0.30669754]
[1720996063195,6.92574519,3260.5,3260.4,0.30669754]
[1720996063396,5.8638,3260.5,3260.4,0.30669754]
[1720996063617,7.75756004,3260.5,3260.4,0.30669754]
[1720996063927,10.21117004,3260.5,3260.4,0.30669754]
[1720996064226,13.21117004,3260.5,3260.4,0.30669754]
[1720996065026,10.75756004,3260.5,3260.4,0.30669754]
[1720996065330,6.44983304,3260.5,3260.4,0.30669754]
[1720996065826,1.06203304,3260.5,3260.4,0.30669754]